[Event "Late-Titled-Tuesday-Blitz-January-16-2024"]
[Site "Chess.com"]
[Date "2024.01.16"]
[Round "5"]
[White "AradNazari"]
[Black "Actuary44"]
[Result "1-0"]
[WhiteElo "2631"]
[BlackElo "2488"]
[TimeControl "180+1"]
[EndTime "14:53:27 PST"]
[Termination "AradNazari won by checkmate"]

1. g4 {[%clk 0:02:46]} 1... e5 {[%clk 0:02:55.5]} 2. e4 {[%clk 0:02:44.6]} 2...
d5 {[%clk 0:02:51.1]} 3. exd5 {[%clk 0:02:35.1]} 3... c6 {[%clk 0:02:51.4]} 4.
Nc3 {[%clk 0:02:32.1]} 4... cxd5 {[%clk 0:02:50.9]} 5. Bg2 {[%clk 0:02:31.4]}
5... d4 {[%clk 0:02:48.3]} 6. Ne4 {[%clk 0:02:31.1]} 6... Nf6 {[%clk 0:02:44.3]}
7. Nxf6+ {[%clk 0:02:28.1]} 7... Qxf6 {[%clk 0:02:45.2]} 8. d3 {[%clk
0:02:25.4]} 8... Bb4+ {[%clk 0:02:44]} 9. Bd2 {[%clk 0:02:21.5]} 9... Bxd2+
{[%clk 0:02:43.7]} 10. Qxd2 {[%clk 0:02:22.4]} 10... O-O {[%clk 0:02:40.4]} 11.
g5 {[%clk 0:02:19.3]} 11... Qb6 {[%clk 0:02:36.5]} 12. O-O-O {[%clk 0:02:18.3]}
12... Be6 {[%clk 0:02:34.2]} 13. Kb1 {[%clk 0:02:17.8]} 13... Nc6 {[%clk
0:02:32.5]} 14. h4 {[%clk 0:02:13.6]} 14... Rfc8 {[%clk 0:02:27.5]} 15. a3
{[%clk 0:02:11.4]} 15... Qc5 {[%clk 0:02:18.5]} 16. h5 {[%clk 0:02:08.1]} 16...
b5 {[%clk 0:01:55.9]} 17. Ne2 {[%clk 0:01:40.8]} 17... b4 {[%clk 0:01:54.6]} 18.
Bxc6 {[%clk 0:01:31.3]} 18... Rxc6 {[%clk 0:01:47.1]} 19. axb4 {[%clk
0:01:29.1]} 19... Qd5 {[%clk 0:01:45.4]} 20. b3 {[%clk 0:01:21.2]} 20... a5
{[%clk 0:01:30.2]} 21. Kb2 {[%clk 0:01:19.2]} 21... Rac8 {[%clk 0:00:51.8]} 22.
Rc1 {[%clk 0:00:51.6]} 22... a4 {[%clk 0:00:52.2]} 23. Rh4 {[%clk 0:00:30.4]}
23... axb3 {[%clk 0:00:43.2]} 24. c4 {[%clk 0:00:30.6]} 24... dxc3+ {[%clk
0:00:36.5]} 25. Rxc3 {[%clk 0:00:31]} 25... Rxc3 {[%clk 0:00:30.6]} 26. Nxc3
{[%clk 0:00:31.2]} 26... Qg2 {[%clk 0:00:27.8]} 27. b5 {[%clk 0:00:27.2]} 27...
Qg1 {[%clk 0:00:22]} 28. b6 {[%clk 0:00:19.5]} 28... Ra8 {[%clk 0:00:20.3]} 29.
Ra4 {[%clk 0:00:19.4]} 29... Rb8 {[%clk 0:00:17.4]} 30. Rb4 {[%clk 0:00:15.4]}
30... Qh1 {[%clk 0:00:13.3]} 31. Ne4 {[%clk 0:00:13.2]} 31... Qxh5 {[%clk
0:00:12.6]} 32. b7 {[%clk 0:00:09.8]} 32... h6 {[%clk 0:00:10.3]} 33. Nc5 {[%clk
0:00:08.2]} 33... hxg5 {[%clk 0:00:07.6]} 34. Na6 {[%clk 0:00:08.4]} 34... Rxb7
{[%clk 0:00:04.9]} 35. Rxb7 {[%clk 0:00:09.3]} 35... Qf3 {[%clk 0:00:03]} 36.
Nc5 {[%clk 0:00:09.1]} 36... Bf5 {[%clk 0:00:02.3]} 37. Rxb3 {[%clk 0:00:07.6]}
37... g4 {[%clk 0:00:02.6]} 38. Ne4 {[%clk 0:00:07.8]} 38... Bxe4 {[%clk
0:00:01.7]} 39. dxe4 {[%clk 0:00:08.7]} 39... Qxe4 {[%clk 0:00:02.3]} 40. Qd3
{[%clk 0:00:09]} 40... Qf4 {[%clk 0:00:01.3]} 41. Rb8# {[%clk 0:00:08.4]} 1-0

[Event "Late-Titled-Tuesday-Blitz-January-16-2024"]
[Site "Chess.com"]
[Date "2024.01.16"]
[Round "5"]
[White "JCVanDamme10"]
[Black "ValeriyGrinev"]
[Result "1-0"]
[WhiteElo "2348"]
[BlackElo "2551"]
[TimeControl "180+1"]
[EndTime "14:53:27 PST"]
[Termination "JCVanDamme10 won by checkmate"]

1. e4 {[%clk 0:02:51.9]} 1... e5 {[%clk 0:02:59.5]} 2. Nf3 {[%clk 0:02:50.7]}
2... Nc6 {[%clk 0:02:59.7]} 3. Bb5 {[%clk 0:02:50.3]} 3... f5 {[%clk 0:02:58.8]}
4. d3 {[%clk 0:02:42.2]} 4... fxe4 {[%clk 0:02:58]} 5. dxe4 {[%clk 0:02:41.8]}
5... Nf6 {[%clk 0:02:58.7]} 6. Qe2 {[%clk 0:02:36.2]} 6... Bb4+ {[%clk
0:02:55.3]} 7. c3 {[%clk 0:02:35.7]} 7... Bc5 {[%clk 0:02:53.7]} 8. O-O {[%clk
0:02:35.4]} 8... d6 {[%clk 0:02:54.1]} 9. Bg5 {[%clk 0:02:29.4]} 9... O-O {[%clk
0:02:53]} 10. Bxc6 {[%clk 0:02:20]} 10... bxc6 {[%clk 0:02:52.2]} 11. Nxe5
{[%clk 0:02:20.3]} 11... dxe5 {[%clk 0:02:28.6]} 12. Qc4+ {[%clk 0:02:19.6]}
12... Kh8 {[%clk 0:02:28.3]} 13. Qxc5 {[%clk 0:02:19.8]} 13... Ba6 {[%clk
0:02:28.4]} 14. Re1 {[%clk 0:02:07.1]} 14... Nxe4 {[%clk 0:02:25.5]} 15. Bxd8
{[%clk 0:02:05.5]} 15... Nxc5 {[%clk 0:02:25.6]} 16. Bh4 {[%clk 0:01:50.4]}
16... Nd3 {[%clk 0:02:24.6]} 17. Re3 {[%clk 0:01:45.9]} 17... Nxb2 {[%clk
0:02:19.6]} 18. Rxe5 {[%clk 0:01:39.9]} 18... Nc4 {[%clk 0:01:56.2]} 19. Re1
{[%clk 0:01:28.7]} 19... Rae8 {[%clk 0:01:55.4]} 20. Rc1 {[%clk 0:01:14.4]}
20... Re2 {[%clk 0:01:54.5]} 21. a4 {[%clk 0:01:15]} 21... Rfe8 {[%clk 0:01:54]}
22. f3 {[%clk 0:00:59.8]} 22... Rb2 {[%clk 0:01:28.3]} 23. Re1 {[%clk
0:00:37.4]} 23... Rxe1+ {[%clk 0:01:11.5]} 24. Bxe1 {[%clk 0:00:36.8]} 24... Ne3
{[%clk 0:01:11.2]} 25. Nd2 {[%clk 0:00:33]} 25... Kg8 {[%clk 0:00:55.2]} 26. Rb1
{[%clk 0:00:31.2]} 26... Ra2 {[%clk 0:00:52.2]} 27. Rb8+ {[%clk 0:00:26.8]}
27... Kf7 {[%clk 0:00:51.9]} 28. Rd8 {[%clk 0:00:24.5]} 28... Ra1 {[%clk
0:00:39.8]} 29. Kf2 {[%clk 0:00:23.9]} 29... Nd1+ {[%clk 0:00:40.4]} 30. Kg3
{[%clk 0:00:23.3]} 30... Nxc3 {[%clk 0:00:41.1]} 31. Bf2 {[%clk 0:00:22.1]}
31... Ne2+ {[%clk 0:00:39]} 32. Kh3 {[%clk 0:00:20.4]} 32... Rxa4 {[%clk
0:00:36]} 33. Ne4 {[%clk 0:00:20.2]} 33... Ra2 {[%clk 0:00:31.9]} 34. Be3 {[%clk
0:00:18.3]} 34... Bb5 {[%clk 0:00:29.4]} 35. Rd7+ {[%clk 0:00:17]} 35... Kg6
{[%clk 0:00:22.2]} 36. Rxc7 {[%clk 0:00:17.1]} 36... a5 {[%clk 0:00:21.9]} 37.
Nd6 {[%clk 0:00:14.9]} 37... Nc3 {[%clk 0:00:18.7]} 38. Bd4 {[%clk 0:00:13.3]}
38... Ne2 {[%clk 0:00:07.5]} 39. Rxg7+ {[%clk 0:00:12.2]} 39... Kh5 {[%clk
0:00:05.4]} 40. g4+ {[%clk 0:00:11.2]} 40... Kh6 {[%clk 0:00:05.7]} 41. Nf5#
{[%clk 0:00:11.5]} 1-0

[Event "Late-Titled-Tuesday-Blitz-January-16-2024"]
[Site "Chess.com"]
[Date "2024.01.16"]
[Round "5"]
[White "zverr1"]
[Black "Heinza9"]
[Result "1-0"]
[WhiteElo "2500"]
[BlackElo "2325"]
[TimeControl "180+1"]
[EndTime "14:53:28 PST"]
[Termination "zverr1 won on time"]

1. e4 {[%clk 0:02:55.9]} 1... e5 {[%clk 0:02:58.8]} 2. Nf3 {[%clk 0:02:55.7]}
2... Nc6 {[%clk 0:02:58.2]} 3. Bc4 {[%clk 0:02:56.3]} 3... Nf6 {[%clk
0:02:57.9]} 4. Ng5 {[%clk 0:02:56]} 4... d5 {[%clk 0:02:57.6]} 5. exd5 {[%clk
0:02:56.9]} 5... b5 {[%clk 0:02:57.7]} 6. Bf1 {[%clk 0:02:56.8]} 6... Nd4 {[%clk
0:02:57.2]} 7. c3 {[%clk 0:02:55.8]} 7... Nxd5 {[%clk 0:02:57.3]} 8. cxd4 {[%clk
0:02:52.8]} 8... Qxg5 {[%clk 0:02:56.7]} 9. Bxb5+ {[%clk 0:02:52.7]} 9... Kd8
{[%clk 0:02:55.5]} 10. Qf3 {[%clk 0:02:40.7]} 10... Bb7 {[%clk 0:02:54.1]} 11.
O-O {[%clk 0:02:40.4]} 11... exd4 {[%clk 0:02:53]} 12. d3 {[%clk 0:02:32.5]}
12... Qg6 {[%clk 0:02:46.2]} 13. Re1 {[%clk 0:02:06.4]} 13... Bd6 {[%clk
0:02:44.2]} 14. Bc4 {[%clk 0:01:51.3]} 14... c6 {[%clk 0:02:32.1]} 15. Bxd5
{[%clk 0:01:47.8]} 15... cxd5 {[%clk 0:02:32.1]} 16. Bd2 {[%clk 0:01:38.2]}
16... Re8 {[%clk 0:02:22.9]} 17. Na3 {[%clk 0:01:33]} 17... Kd7 {[%clk
0:02:11.1]} 18. Nb5 {[%clk 0:01:17.8]} 18... Bc5 {[%clk 0:01:50.9]} 19. Qf4
{[%clk 0:01:04.9]} 19... Bb6 {[%clk 0:01:45.8]} 20. Rac1 {[%clk 0:00:59.2]}
20... Rxe1+ {[%clk 0:01:42.3]} 21. Rxe1 {[%clk 0:00:54.3]} 21... a6 {[%clk
0:01:38]} 22. Nxd4 {[%clk 0:00:48.4]} 22... Bc7 {[%clk 0:01:09.7]} 23. Re7+
{[%clk 0:00:31.6]} 23... Kxe7 {[%clk 0:01:07.4]} 24. Qxc7+ {[%clk 0:00:31.7]}
24... Kf8 {[%clk 0:01:06.2]} 25. Qxb7 {[%clk 0:00:27.1]} 25... Re8 {[%clk
0:01:05.7]} 26. Qxd5 {[%clk 0:00:20.8]} 26... Kg8 {[%clk 0:01:02.7]} 27. Qf3
{[%clk 0:00:12.1]} 27... Qd6 {[%clk 0:00:44.2]} 28. Nb3 {[%clk 0:00:12]} 28...
h6 {[%clk 0:00:43.4]} 29. g3 {[%clk 0:00:12.1]} 29... Qe5 {[%clk 0:00:38.2]} 30.
Bc3 {[%clk 0:00:10.3]} 30... Qe6 {[%clk 0:00:29.5]} 31. Kg2 {[%clk 0:00:07.6]}
31... f6 {[%clk 0:00:25.6]} 32. Nc5 {[%clk 0:00:05.8]} 32... Qd6 {[%clk
0:00:22.5]} 33. Ne4 {[%clk 0:00:05.5]} 33... Qe6 {[%clk 0:00:19.3]} 34. h3
{[%clk 0:00:03.6]} 34... Rd8 {[%clk 0:00:15.3]} 35. Nc5 {[%clk 0:00:03.6]} 35...
Qe7 {[%clk 0:00:10.2]} 36. Nb3 {[%clk 0:00:03.9]} 36... Qd6 {[%clk 0:00:07.2]}
37. d4 {[%clk 0:00:02.8]} 37... Qe6 {[%clk 0:00:06]} 38. Nc5 {[%clk 0:00:03.7]}
38... Qd6 {[%clk 0:00:05.3]} 39. Nb7 {[%clk 0:00:04.1]} 1-0

[Event "Late-Titled-Tuesday-Blitz-January-16-2024"]
[Site "Chess.com"]
[Date "2024.01.16"]
[Round "5"]
[White "SEBAZZANO"]
[Black "Gryffindorac8"]
[Result "0-1"]
[WhiteElo "2232"]
[BlackElo "2380"]
[TimeControl "180+1"]
[EndTime "14:53:29 PST"]
[Termination "Gryffindorac8 won on time"]

1. d4 {[%clk 0:02:37.4]} 1... Nf6 {[%clk 0:02:59]} 2. Bf4 {[%clk 0:02:36.6]}
2... d5 {[%clk 0:02:57]} 3. e3 {[%clk 0:02:36.5]} 3... c5 {[%clk 0:02:57]} 4. c3
{[%clk 0:02:36.8]} 4... Nc6 {[%clk 0:02:57.1]} 5. Nd2 {[%clk 0:02:37]} 5... Bf5
{[%clk 0:02:54.4]} 6. Qb3 {[%clk 0:02:36]} 6... Qc8 {[%clk 0:01:48.8]} 7. Ngf3
{[%clk 0:02:30.5]} 7... e6 {[%clk 0:01:47.8]} 8. Be2 {[%clk 0:02:26.6]} 8... Be7
{[%clk 0:01:44.8]} 9. h3 {[%clk 0:02:25.9]} 9... h6 {[%clk 0:01:43.5]} 10. O-O
{[%clk 0:02:26.1]} 10... O-O {[%clk 0:01:43.2]} 11. Rfe1 {[%clk 0:02:25.5]}
11... c4 {[%clk 0:01:40.2]} 12. Qd1 {[%clk 0:02:24.2]} 12... b5 {[%clk
0:01:39.4]} 13. Ne5 {[%clk 0:02:13.4]} 13... a5 {[%clk 0:01:33.6]} 14. Bf3
{[%clk 0:02:12.7]} 14... Nxe5 {[%clk 0:01:24]} 15. Bxe5 {[%clk 0:02:04.1]} 15...
b4 {[%clk 0:01:16.1]} 16. e4 {[%clk 0:01:51.9]} 16... dxe4 {[%clk 0:01:14]} 17.
Nxe4 {[%clk 0:01:50.7]} 17... Nxe4 {[%clk 0:01:13.2]} 18. Bxe4 {[%clk
0:01:50.6]} 18... Bxe4 {[%clk 0:01:14.1]} 19. Rxe4 {[%clk 0:01:50.6]} 19... bxc3
{[%clk 0:01:12.7]} 20. bxc3 {[%clk 0:01:44.3]} 20... Qc6 {[%clk 0:00:55.9]} 21.
Rg4 {[%clk 0:01:26.5]} 21... f6 {[%clk 0:00:53.7]} 22. Bf4 {[%clk 0:01:24.4]}
22... Kh8 {[%clk 0:00:48.1]} 23. Qd2 {[%clk 0:00:38]} 23... g5 {[%clk
0:00:46.8]} 24. Bh2 {[%clk 0:00:32.8]} 24... f5 {[%clk 0:00:39.4]} 25. Be5+
{[%clk 0:00:32]} 25... Bf6 {[%clk 0:00:34]} 26. Bxf6+ {[%clk 0:00:30.1]} 26...
Rxf6 {[%clk 0:00:34.9]} 27. Rg3 {[%clk 0:00:29.7]} 27... f4 {[%clk 0:00:27.2]}
28. Rf3 {[%clk 0:00:26.6]} 28... Rb8 {[%clk 0:00:26.2]} 29. Re1 {[%clk
0:00:24.7]} 29... Kg7 {[%clk 0:00:24.3]} 30. Re5 {[%clk 0:00:18.5]} 30... Rb5
{[%clk 0:00:20.2]} 31. Qe2 {[%clk 0:00:16]} 31... Rxe5 {[%clk 0:00:18.3]} 32.
Qxe5 {[%clk 0:00:14.9]} 32... Qd5 {[%clk 0:00:15.9]} 33. Qc7+ {[%clk 0:00:13.4]}
33... Kg6 {[%clk 0:00:15.5]} 34. Qc8 {[%clk 0:00:12]} 34... Kg7 {[%clk
0:00:14.7]} 35. Qc7+ {[%clk 0:00:11.4]} 35... Rf7 {[%clk 0:00:14.7]} 36. Qc8
{[%clk 0:00:09.6]} 36... Rb7 {[%clk 0:00:14.1]} 37. Kh2 {[%clk 0:00:08]} 37...
Qe4 {[%clk 0:00:12.2]} 38. Qe8 {[%clk 0:00:03.8]} 38... Rf7 {[%clk 0:00:09.9]}
39. Qc8 {[%clk 0:00:03.4]} 39... Qd5 {[%clk 0:00:09.4]} 40. Qe8 {[%clk
0:00:02.8]} 40... h5 {[%clk 0:00:08]} 0-1

[Event "Late-Titled-Tuesday-Blitz-January-16-2024"]
[Site "Chess.com"]
[Date "2024.01.16"]
[Round "5"]
[White "KSho99"]
[Black "topce"]
[Result "0-1"]
[WhiteElo "2159"]
[BlackElo "2361"]
[TimeControl "180+1"]
[EndTime "14:53:29 PST"]
[Termination "topce won by resignation"]

1. Nf3 {[%clk 0:03:00.9]} 1... Nf6 {[%clk 0:02:58.3]} 2. g3 {[%clk 0:02:59.9]}
2... c5 {[%clk 0:02:54.4]} 3. Bg2 {[%clk 0:02:57.6]} 3... Nc6 {[%clk 0:02:55]}
4. O-O {[%clk 0:02:56.2]} 4... g6 {[%clk 0:02:55.3]} 5. b3 {[%clk 0:02:53.2]}
5... Bg7 {[%clk 0:02:55]} 6. Bb2 {[%clk 0:02:53.6]} 6... d5 {[%clk 0:02:53.9]}
7. d4 {[%clk 0:02:25.6]} 7... Ne4 {[%clk 0:02:51.3]} 8. e3 {[%clk 0:01:50.9]}
8... O-O {[%clk 0:02:42.3]} 9. Nbd2 {[%clk 0:01:47.6]} 9... Bf5 {[%clk
0:02:33.1]} 10. Nxe4 {[%clk 0:01:16.3]} 10... Bxe4 {[%clk 0:02:22.4]} 11. c3
{[%clk 0:01:12.8]} 11... cxd4 {[%clk 0:02:13.2]} 12. cxd4 {[%clk 0:01:10.4]}
12... Qa5 {[%clk 0:02:10]} 13. a3 {[%clk 0:01:03.6]} 13... e6 {[%clk 0:01:57.6]}
14. Nd2 {[%clk 0:00:54.1]} 14... Bxg2 {[%clk 0:01:54.6]} 15. Kxg2 {[%clk
0:00:54.3]} 15... Rfc8 {[%clk 0:01:50.2]} 16. Qe2 {[%clk 0:00:50.9]} 16... Qb6
{[%clk 0:01:48.3]} 17. Rfc1 {[%clk 0:00:47.8]} 17... a5 {[%clk 0:01:41.2]} 18.
a4 {[%clk 0:00:41.1]} 18... Bf8 {[%clk 0:01:28.1]} 19. Qb5 {[%clk 0:00:34.6]}
19... Qa6 {[%clk 0:01:10.7]} 20. Qxa6 {[%clk 0:00:19]} 20... bxa6 {[%clk
0:01:07.2]} 21. Ba3 {[%clk 0:00:19.1]} 21... Bb4 {[%clk 0:00:56.7]} 22. Nf3
{[%clk 0:00:13.7]} 22... f6 {[%clk 0:00:53.1]} 23. Kf1 {[%clk 0:00:13.1]} 23...
Kf7 {[%clk 0:00:51.8]} 24. Ne1 {[%clk 0:00:12.1]} 24... Bxa3 {[%clk 0:00:49.4]}
25. Rxa3 {[%clk 0:00:11.8]} 25... Nb4 {[%clk 0:00:50.3]} 26. Raa1 {[%clk
0:00:07.6]} 26... Ke7 {[%clk 0:00:49.7]} 27. Ke2 {[%clk 0:00:07.6]} 27... Kd6
{[%clk 0:00:49.1]} 28. Kd2 {[%clk 0:00:07.8]} 28... Rab8 {[%clk 0:00:48.5]} 29.
Rxc8 {[%clk 0:00:07]} 29... Rxc8 {[%clk 0:00:47.3]} 30. Rc1 {[%clk 0:00:07.1]}
30... Rxc1 {[%clk 0:00:42.6]} 31. Kxc1 {[%clk 0:00:07]} 31... e5 {[%clk
0:00:43.3]} 32. Kd2 {[%clk 0:00:04.6]} 32... e4 {[%clk 0:00:43.5]} 33. Kc3
{[%clk 0:00:02.2]} 33... Ke6 {[%clk 0:00:42.3]} 34. Kd2 {[%clk 0:00:02.2]} 34...
Kf5 {[%clk 0:00:42.4]} 35. Ke2 {[%clk 0:00:01.9]} 35... Kg4 {[%clk 0:00:41.7]}
36. Kf1 {[%clk 0:00:01.7]} 36... Kh3 {[%clk 0:00:41.7]} 37. Kg1 {[%clk 0:00:02]}
37... h6 {[%clk 0:00:38.7]} 38. Kf1 {[%clk 0:00:01.9]} 38... h5 {[%clk
0:00:39.6]} 39. Kg1 {[%clk 0:00:01.9]} 39... h4 {[%clk 0:00:39.5]} 40. Ng2
{[%clk 0:00:02.1]} 40... g5 {[%clk 0:00:36.5]} 41. Ne1 {[%clk 0:00:01.4]} 41...
Kg4 {[%clk 0:00:31.9]} 42. gxh4 {[%clk 0:00:01.5]} 42... Kxh4 {[%clk 0:00:31.3]}
43. Kg2 {[%clk 0:00:01.9]} 43... Nd3 {[%clk 0:00:28.9]} 44. Nxd3 {[%clk
0:00:01.7]} 44... exd3 {[%clk 0:00:29.1]} 45. Kf1 {[%clk 0:00:02]} 45... Kg4
{[%clk 0:00:25.7]} 46. Ke1 {[%clk 0:00:02.1]} 46... Kf3 {[%clk 0:00:26.1]} 47.
Kd2 {[%clk 0:00:02.3]} 47... f5 {[%clk 0:00:26.5]} 48. Kxd3 {[%clk 0:00:03.2]}
48... Kxf2 {[%clk 0:00:26.6]} 49. Kd2 {[%clk 0:00:02.3]} 49... g4 {[%clk
0:00:26.2]} 50. Kd3 {[%clk 0:00:02.2]} 50... Kg2 {[%clk 0:00:26.4]} 51. Ke2
{[%clk 0:00:02.2]} 51... Kxh2 {[%clk 0:00:25.6]} 0-1

[Event "Late-Titled-Tuesday-Blitz-January-16-2024"]
[Site "Chess.com"]
[Date "2024.01.16"]
[Round "5"]
[White "ShahMatKanal"]
[Black "chessajedrezz2020"]
[Result "1-0"]
[WhiteElo "2523"]
[BlackElo "2638"]
[TimeControl "180+1"]
[EndTime "14:53:33 PST"]
[Termination "ShahMatKanal won on time"]

1. d4 {[%clk 0:02:57.2]} 1... Nf6 {[%clk 0:02:02.4]} 2. Nf3 {[%clk 0:02:56.4]}
2... g6 {[%clk 0:02:00.8]} 3. c4 {[%clk 0:02:56.6]} 3... Bg7 {[%clk 0:01:59.3]}
4. Nc3 {[%clk 0:02:57.2]} 4... d5 {[%clk 0:01:59.5]} 5. Bg5 {[%clk 0:02:49.6]}
5... dxc4 {[%clk 0:01:49.9]} 6. e4 {[%clk 0:02:47.2]} 6... O-O {[%clk
0:01:48.9]} 7. Bxc4 {[%clk 0:02:46.6]} 7... c5 {[%clk 0:01:48.9]} 8. d5 {[%clk
0:02:41.4]} 8... b5 {[%clk 0:01:41]} 9. Bd3 {[%clk 0:02:31.5]} 9... c4 {[%clk
0:01:33.1]} 10. Bc2 {[%clk 0:02:30]} 10... b4 {[%clk 0:01:30.3]} 11. Ne2 {[%clk
0:02:26.9]} 11... a5 {[%clk 0:01:26.1]} 12. O-O {[%clk 0:02:25.2]} 12... Ba6
{[%clk 0:01:25.1]} 13. Re1 {[%clk 0:02:22.3]} 13... Qb6 {[%clk 0:01:08.2]} 14.
Be3 {[%clk 0:02:20.4]} 14... Qb7 {[%clk 0:01:00.1]} 15. e5 {[%clk 0:02:08.4]}
15... Nxd5 {[%clk 0:00:57.8]} 16. Be4 {[%clk 0:01:45.4]} 16... Rd8 {[%clk
0:00:42.9]} 17. Nf4 {[%clk 0:01:41]} 17... e6 {[%clk 0:00:36.7]} 18. Bxd5 {[%clk
0:00:50]} 18... exd5 {[%clk 0:00:35.5]} 19. e6 {[%clk 0:00:50.9]} 19... Nc6
{[%clk 0:00:28]} 20. Nd4 {[%clk 0:00:45]} 20... f6 {[%clk 0:00:20.5]} 21. h4
{[%clk 0:00:43.4]} 21... Ne5 {[%clk 0:00:19.7]} 22. h5 {[%clk 0:00:42.7]} 22...
Qe7 {[%clk 0:00:20.4]} 23. Qc2 {[%clk 0:00:34.8]} 23... f5 {[%clk 0:00:20.1]}
24. Rad1 {[%clk 0:00:28.7]} 24... Rac8 {[%clk 0:00:19.5]} 25. Qa4 {[%clk
0:00:24.9]} 25... c3 {[%clk 0:00:13.7]} 26. bxc3 {[%clk 0:00:24.7]} 26... bxc3
{[%clk 0:00:14.2]} 27. Qxa5 {[%clk 0:00:24.5]} 27... c2 {[%clk 0:00:10.5]} 28.
Nxc2 {[%clk 0:00:23.5]} 28... Rxc2 {[%clk 0:00:05.5]} 29. Qxa6 {[%clk
0:00:23.9]} 29... Rc6 {[%clk 0:00:05.5]} 30. Qa4 {[%clk 0:00:20.5]} 30... Rc4
{[%clk 0:00:05.3]} 31. Qb3 {[%clk 0:00:18.1]} 31... d4 {[%clk 0:00:05.3]} 32.
Bc1 {[%clk 0:00:13]} 32... g5 {[%clk 0:00:05.8]} 33. Nd3 {[%clk 0:00:11.9]}
33... Nxd3 {[%clk 0:00:05.8]} 34. Qxd3 {[%clk 0:00:12.8]} 34... Rc5 {[%clk
0:00:04.8]} 35. Ba3 {[%clk 0:00:12.3]} 35... Rdd5 {[%clk 0:00:02.5]} 36. Bxc5
{[%clk 0:00:11.8]} 36... Rxc5 {[%clk 0:00:03.3]} 37. Rc1 {[%clk 0:00:10.1]}
37... Rc3 {[%clk 0:00:03.1]} 38. Qa6 {[%clk 0:00:08.3]} 38... Bf8 {[%clk
0:00:02.1]} 39. Qa8 {[%clk 0:00:06.3]} 39... Rxc1 {[%clk 0:00:01.2]} 40. Rxc1
{[%clk 0:00:07.2]} 40... d3 {[%clk 0:00:01.6]} 41. Qd5 {[%clk 0:00:05.6]} 41...
d2 {[%clk 0:00:01.8]} 42. Qxd2 {[%clk 0:00:04.4]} 1-0

[Event "Late-Titled-Tuesday-Blitz-January-16-2024"]
[Site "Chess.com"]
[Date "2024.01.16"]
[Round "5"]
[White "danshev16"]
[Black "mr_gustavo"]
[Result "0-1"]
[WhiteElo "2525"]
[BlackElo "2743"]
[TimeControl "180+1"]
[EndTime "14:53:34 PST"]
[Termination "mr_gustavo won by resignation"]

1. d3 {[%clk 0:03:00.9]} 1... Nf6 {[%clk 0:02:56.6]} 2. c3 {[%clk 0:03:01.8]}
2... b6 {[%clk 0:02:56.2]} 3. Nd2 {[%clk 0:03:02.7]} 3... Bb7 {[%clk 0:02:56.6]}
4. Ngf3 {[%clk 0:03:03.4]} 4... g6 {[%clk 0:02:57.2]} 5. h3 {[%clk 0:03:04]}
5... Bg7 {[%clk 0:02:57.8]} 6. g4 {[%clk 0:03:04.6]} 6... O-O {[%clk 0:02:58.4]}
7. Bg2 {[%clk 0:03:05.3]} 7... d6 {[%clk 0:02:59]} 8. Nh4 {[%clk 0:03:05.9]}
8... Bxg2 {[%clk 0:02:58.5]} 9. Nxg2 {[%clk 0:03:06.8]} 9... Qc8 {[%clk
0:02:57.7]} 10. g5 {[%clk 0:03:07.3]} 10... Qb7 {[%clk 0:02:58.3]} 11. Nf3
{[%clk 0:03:03.7]} 11... Nh5 {[%clk 0:02:57]} 12. h4 {[%clk 0:03:04.2]} 12...
Nd7 {[%clk 0:02:56.4]} 13. Qa4 {[%clk 0:03:04.1]} 13... Ne5 {[%clk 0:02:54.6]}
14. Qe4 {[%clk 0:03:00.3]} 14... Nxf3+ {[%clk 0:02:53]} 15. exf3 {[%clk
0:02:55.9]} 15... d5 {[%clk 0:02:52]} 16. Qg4 {[%clk 0:02:54.5]} 16... f5 {[%clk
0:02:49.3]} 17. gxf6 {[%clk 0:02:53.4]} 17... Rxf6 {[%clk 0:02:49.1]} 18. Bg5
{[%clk 0:02:53.1]} 18... Rc6 {[%clk 0:02:25.7]} 19. O-O {[%clk 0:02:44.8]} 19...
e5 {[%clk 0:02:23.7]} 20. f4 {[%clk 0:02:36.2]} 20... exf4 {[%clk 0:02:21.3]}
21. Nxf4 {[%clk 0:02:29.3]} 21... Nxf4 {[%clk 0:02:21.2]} 22. Bxf4 {[%clk
0:02:30.2]} 22... Rf8 {[%clk 0:02:19.8]} 23. Bg3 {[%clk 0:02:30.2]} 23... Rcf6
{[%clk 0:02:16.7]} 24. h5 {[%clk 0:02:29.4]} 24... Qc6 {[%clk 0:02:14.3]} 25.
Rae1 {[%clk 0:02:26.9]} 25... gxh5 {[%clk 0:02:11.8]} 26. Qxh5 {[%clk
0:02:26.3]} 26... Rg6 {[%clk 0:02:11.9]} 27. Re7 {[%clk 0:02:22.4]} 27... d4
{[%clk 0:02:04.9]} 28. c4 {[%clk 0:02:13]} 28... Qf6 {[%clk 0:02:02.6]} 29. Ree1
{[%clk 0:01:55]} 29... Kh8 {[%clk 0:01:49.8]} 30. Kg2 {[%clk 0:01:49.7]} 30...
Rg5 {[%clk 0:01:33.4]} 31. Qe2 {[%clk 0:01:45.2]} 31... c5 {[%clk 0:01:26.2]}
32. Qe4 {[%clk 0:01:38.6]} 32... Rf5 {[%clk 0:01:19]} 33. Re2 {[%clk 0:01:30.5]}
33... Qg6 {[%clk 0:01:04.3]} 34. Rh1 {[%clk 0:01:25]} 34... Be5 {[%clk
0:00:31.9]} 35. Rh3 {[%clk 0:00:34.9]} 35... Bg7 {[%clk 0:00:30.2]} 36. a3
{[%clk 0:00:21.3]} 36... a6 {[%clk 0:00:30]} 37. b4 {[%clk 0:00:21]} 37... cxb4
{[%clk 0:00:30]} 38. axb4 {[%clk 0:00:21.9]} 38... a5 {[%clk 0:00:30.2]} 39.
bxa5 {[%clk 0:00:19.3]} 39... bxa5 {[%clk 0:00:31.1]} 40. Rh4 {[%clk 0:00:16.9]}
40... a4 {[%clk 0:00:26]} 41. Rg4 {[%clk 0:00:17.2]} 41... Qf7 {[%clk
0:00:25.3]} 42. Ra2 {[%clk 0:00:14]} 42... a3 {[%clk 0:00:23.7]} 43. Rxa3 {[%clk
0:00:12.4]} 43... Rxf2+ {[%clk 0:00:21.9]} 44. Bxf2 {[%clk 0:00:13.3]} 44...
Qxf2+ {[%clk 0:00:21.5]} 45. Kh3 {[%clk 0:00:14.2]} 45... Rf3+ {[%clk
0:00:20.4]} 46. Qxf3 {[%clk 0:00:12.9]} 46... Qxf3+ {[%clk 0:00:21.3]} 47. Rg3
{[%clk 0:00:13.2]} 47... Qh1+ {[%clk 0:00:20.6]} 48. Kg4 {[%clk 0:00:13.3]}
48... Be5 {[%clk 0:00:19.6]} 49. Ra8+ {[%clk 0:00:12.8]} 49... Qxa8 {[%clk
0:00:19.3]} 50. Rf3 {[%clk 0:00:12.2]} 50... Qg8+ {[%clk 0:00:17.8]} 51. Kf5
{[%clk 0:00:12.7]} 51... Bc7 {[%clk 0:00:16.6]} 52. Ke4 {[%clk 0:00:13]} 52...
Qg4+ {[%clk 0:00:16.2]} 0-1